bitfinex-derivatives/quotes_BTCF0:USTF0_20260113
["timestamp","ask_amount","ask_price","bid_price","bid_amount"]
[1768278162513,0.10291862,91656.0,91640.0,0.13231022]
[1768278162809,0.09199562,91655.0,91640.0,0.13231022]
[1768278163004,0.09199562,91654.0,91640.0,0.13231022]
[1768278165020,0.09199562,91654.0,91640.0,0.14323522]
[1768278166114,0.09832,91655.0,91640.0,0.14323522]
[1768278166915,0.09592002,91655.0,91640.0,0.14323522]
[1768278168825,0.09592002,91655.0,91640.0,0.13231022]
[1768278168826,0.18791564,91655.0,91640.0,0.13231022]
[1768278169219,0.09199562,91654.0,91640.0,0.13231022]
[1768278169520,0.09199562,91654.0,91638.0,0.00240076]
[1768278170414,0.19095436,91654.0,91638.0,0.00240076]
[1768278170612,0.010923,91653.0,91638.0,0.00240076]
[1768278170818,0.20187736,91653.0,91638.0,0.00240076]
[1768278171019,0.09199562,91652.0,91638.0,0.00240076]
[1768278171720,0.19095436,91650.0,91638.0,0.00240076]
[1768278171924,0.09895874,91644.0,91630.0,0.09828]
[1768278172121,0.09199562,91643.0,91625.0,0.10377706]
[1768278172518,0.09199562,91642.0,91625.0,0.10377706]
[1768278172717,0.00016361,91658.0,91636.0,0.08094636]
[1768278172917,0.09832,91661.0,91642.0,0.010925]
[1768278173316,0.19031562,91661.0,91642.0,0.010925]
[1768278173728,0.09199562,91660.0,91642.0,0.010925]
[1768278174320,0.09199562,91660.0,91642.0,0.01108861]
[1768278175230,0.09199562,91660.0,91642.0,0.00016361]
[1768278176430,0.19095436,91660.0,91642.0,0.00016361]
[1768278176634,0.09199562,91659.0,91642.0,0.00016361]
[1768278176934,0.09199562,91658.0,91642.0,0.00016361]
[1768278179230,0.19095436,91658.0,91642.0,0.00016361]
[1768278179534,0.09199562,91657.0,91642.0,0.00016361]
[1768278180035,0.08654095,91657.0,91642.0,0.00016361]
[1768278182228,0.08654095,91657.0,91643.0,0.010924]
[1768278183038,0.09199562,91663.0,91643.0,0.010924]
[1768278183634,0.10291762,91663.0,91642.0,0.00016361]
[1768278183837,0.09199562,91661.0,91642.0,0.00016361]
[1768278184337,0.09199562,91659.0,91642.0,0.00016361]
[1768278184635,0.09561189,91658.0,91642.0,0.00016361]
[1768278184837,0.19401241,91657.0,91642.0,0.00016361]
[1768278185037,0.09561189,91656.0,91642.0,0.00016361]
[1768278186438,0.19401241,91656.0,91642.0,0.00016361]
[1768278186740,0.09561189,91655.0,91642.0,0.00016361]
[1768278187943,0.18855893,91655.0,91642.0,0.00016361]
[1768278188133,0.09840052,91655.0,91642.0,0.01108861]
[1768278190035,0.19401241,91655.0,91642.0,0.01108861]
[1768278190240,0.09561189,91654.0,91642.0,0.01108861]
[1768278190443,0.09561189,91653.0,91642.0,0.01108861]
[1768278191544,0.19401241,91652.0,91642.0,0.01108861]
[1768278191746,0.09561189,91650.0,91642.0,0.00016361]
[1768278191949,0.19401241,91650.0,91642.0,0.00016361]
[1768278192145,0.09561189,91649.0,91638.0,0.109245]
[1768278192946,0.09561189,91645.0,91628.0,8.977e-05]
[1768278193148,0.09561189,91643.0,91632.0,0.09832]
[1768278193345,0.09561189,91642.0,91632.0,0.09832]
[1768278193534,0.11069185,91642.0,91632.0,0.09832]
[1768278195041,0.0143063,91642.0,91632.0,0.109246]
[1768278195237,0.09638555,91654.0,91635.0,0.010925]
[1768278195437,0.09371428,91653.0,91635.0,0.010925]
[1768278195647,0.09638555,91652.0,91635.0,0.010925]
[1768278195847,0.09638555,91650.0,91635.0,0.010925]
[1768278196141,0.09638555,91648.0,91635.0,0.010925]
[1768278196345,0.09371428,91647.0,91632.0,0.09832]
[1768278196640,0.09638555,91646.0,91632.0,0.09832]
[1768278196841,0.09371428,91645.0,91632.0,0.09832]
[1768278197036,0.09638555,91644.0,91632.0,0.09832]
[1768278197342,0.19009983,91644.0,91632.0,0.09832]
[1768278199343,0.09638555,91642.0,91632.0,0.09832]
[1768278199848,0.19009983,91640.0,91628.0,8.977e-05]
[1768278200049,0.19009983,91639.0,91624.0,0.09832]
[1768278200241,0.19009983,91638.0,91624.0,0.09832]
[1768278200651,0.19009983,91637.0,91624.0,0.09832]
[1768278200845,0.09638555,91636.0,91624.0,0.09832]
[1768278201150,7.976e-05,91635.0,91624.0,0.09832]
[1768278203048,0.09371428,91632.0,91618.0,0.14786896]
[1768278203245,0.09371428,91630.0,91618.0,0.010927]
[1768278203441,0.19009983,91630.0,91618.0,0.010927]
[1768278203647,0.19009983,91630.0,91617.0,0.09832]
[1768278204348,0.09371428,91630.0,91617.0,0.109248]
[1768278204943,0.0001637,91633.0,91620.0,0.010927]
[1768278205752,0.19026353,91633.0,91617.0,0.09832]
[1768278206056,0.09371428,91631.0,91617.0,0.09832]
[1768278206251,0.19009983,91630.0,91617.0,0.09832]
[1768278206555,0.09371428,91629.0,91617.0,0.09832]
[1768278207055,0.09371428,91623.0,91613.0,0.0824363]
[1768278207250,0.0001637,91633.0,91608.0,0.10072155]
[1768278207251,0.09371428,91621.0,91608.0,0.10072155]
[1768278207455,0.09371428,91620.0,91608.0,0.10072155]
[1768278207950,0.09638555,91618.0,91608.0,0.10072155]
[1768278208156,0.09371428,91617.0,91608.0,0.10072155]
[1768278208355,0.09371428,91616.0,91608.0,0.10072155]
[1768278208945,0.09371428,91616.0,91599.0,0.01093]
[1768278208946,0.09371428,91616.0,91600.0,0.09832]
[1768278209145,0.09371428,91615.0,91600.0,0.09832]
[1768278209953,0.09371428,91614.0,91600.0,0.09832]
[1768278210152,0.09371428,91613.0,91600.0,0.09832]
[1768278210352,0.09638555,91611.0,91600.0,0.09832]
[1768278210548,0.09379297,91612.0,91600.0,0.09832]
[1768278212458,0.09371428,91610.0,91590.0,0.010931]
[1768278212652,0.09371428,91608.0,91594.0,0.01093]
[1768278218664,0.09816943,91606.0,91594.0,0.01093]
[1768278219362,0.09816943,91606.0,91590.0,0.010931]
[1768278219766,0.09816943,91606.0,91590.0,0.12010011]
[1768278219967,0.09816943,91606.0,91594.0,0.01093]
[1768278220562,0.09816943,91606.0,91589.0,0.09832]
[1768278220563,0.19142367,91605.0,91590.0,0.010931]
[1768278220962,0.19142367,91605.0,91590.0,0.1201013]
[1768278221362,0.09816943,91604.0,91590.0,0.1201013]
[1768278223574,0.09816943,91604.0,91590.0,0.1091703]
[1768278223778,0.09816943,91603.0,91590.0,0.1091703]
[1768278225065,0.09816943,91603.0,91589.0,0.09832]
[1768278226376,0.09325424,91602.0,91588.0,7.882e-05]
[1768278226571,0.09816943,91601.0,91589.0,0.09836]
[1768278229378,0.19142367,91601.0,91588.0,7.882e-05]
[1768278229580,0.09816943,91595.0,91587.0,0.97946558]
[1768278229770,0.19142367,91600.0,91587.0,0.97946558]
[1768278229968,0.09816943,91600.0,91587.0,0.97946558]
[1768278231283,0.09816943,91605.0,91587.0,0.97946558]
[1768278231470,0.09816943,91604.0,91587.0,0.97946558]
[1768278232083,0.09816943,91603.0,91587.0,0.97946558]
[1768278232976,0.09816943,91603.0,91588.0,0.010931]
[1768278233176,0.19142367,91603.0,91588.0,0.010931]
[1768278233580,0.09816943,91602.0,91587.0,0.97946558]
[1768278234982,0.09816943,91602.0,91587.0,0.99039658]
[1768278237189,0.09816943,91602.0,91587.0,0.97946558]
[1768278237386,0.09816943,91602.0,91590.0,0.13244581]
[1768278238184,0.09816943,91602.0,91575.0,0.010933]
[1768278238185,0.19142367,91598.0,91575.0,0.010933]
[1768278238379,0.09816943,91591.0,91580.0,0.13244581]
[1768278239784,0.09816943,91591.0,91581.0,0.010932]
[1768278242486,0.13244581,91600.0,91561.0,0.0930308]
[1768278242487,0.19142367,91589.0,91561.0,0.0930308]
[1768278242686,0.09816943,91577.0,91565.0,0.01639463]
[1768278242895,0.09325424,91575.0,91565.0,0.00546063]
[1768278243187,0.09325424,91571.0,91560.0,0.09836]
[1768278243387,0.09816943,91570.0,91560.0,0.09836]
[1768278243591,0.09816943,91568.0,91560.0,0.09836]
[1768278244102,0.09816943,91568.0,91553.0,0.32828]
[1768278244301,0.09816943,91568.0,91552.0,0.109295]
[1768278245184,0.09865747,91561.0,91548.0,0.01333912]
[1768278245391,0.0987387,91560.0,91548.0,0.01333912]
[1768278246095,0.19212316,91560.0,91548.0,0.01333912]
[1768278246491,0.19204193,91558.0,91548.0,0.00240312]
[1768278246692,0.19204193,91556.0,91548.0,0.00240312]
[1768278247203,0.09865747,91555.0,91548.0,0.00240312]
[1768278247497,0.09865747,91555.0,91548.0,0.00230657]
[1768278247682,0.19204193,91555.0,91548.0,0.00230657]
[1768278249194,0.09865747,91553.0,91548.0,0.00230657]
[1768278249891,0.19204193,91553.0,91548.0,0.00230657]
[1768278250093,0.09865747,91552.0,91548.0,0.00230657]
[1768278251399,0.09338446,91549.0,91528.0,0.09836]
[1768278251701,0.109232,91551.0,91528.0,0.09836]
[1768278251702,0.09338446,91545.0,91530.0,0.13244581]
[1768278251995,0.19204193,91545.0,91530.0,0.13244581]
[1768278252395,0.19204193,91545.0,91531.0,0.010938]
[1768278253287,0.19204193,91545.0,91535.0,0.13244581]
[1768278254092,0.19204193,91545.0,91536.0,0.010937]
[1768278258602,0.09141451,91544.0,91536.0,0.010937]
[1768278258807,0.09141451,91543.0,91532.0,0.010938]
[1768278259608,0.18290892,91543.0,91532.0,0.010938]
[1768278260606,0.13244581,91550.0,91528.0,0.09836]
[1768278260607,0.09149492,91540.0,91528.0,0.09836]
[1768278260805,0.09149441,91540.0,91531.0,0.010938]
[1768278261104,0.09149441,91540.0,91530.0,0.13244581]
[1768278262406,0.09149441,91540.0,91530.0,0.14338381]
[1768278262709,0.10718473,91543.0,91533.0,0.010938]
[1768278263907,0.01577022,91542.0,91533.0,0.010938]
[1768278264107,0.10718473,91542.0,91533.0,0.010938]
[1768278264814,0.10552061,91541.0,91530.0,0.13244581]
[1768278265008,0.0141061,91539.0,91529.0,0.010938]
[1768278265201,0.10552061,91539.0,91530.0,0.13244581]
[1768278265511,0.10552061,91539.0,91531.0,0.010938]
[1768278265695,6.1e-07,91539.0,91531.0,0.010938]
[1768278265900,0.00016379,91544.0,91531.0,0.010938]
[1768278266098,0.00016379,91544.0,91534.0,0.010937]
[1768278267716,0.00041635,91543.0,91534.0,0.010937]
[1768278272115,0.09099465,91545.0,91534.0,0.010937]
[1768278273915,0.09099465,91545.0,91530.0,0.14338381]
[1768278274103,0.09605893,91545.0,91530.0,0.14338381]
[1768278276219,0.00643783,91544.0,91530.0,0.010938]
[1768278276425,0.00643783,91544.0,91530.0,0.14338381]
[1768278279518,0.09260665,91545.0,91533.0,0.010938]
[1768278282716,0.00389367,91544.0,91533.0,0.010938]
[1768278283117,0.00389367,91544.0,91530.0,0.13244581]
[1768278283317,0.00389367,91544.0,91529.0,0.010938]
[1768278283517,0.00389367,91544.0,91530.0,0.13244581]
[1768278283717,0.00389367,91544.0,91529.0,0.010938]
[1768278283920,0.00389367,91544.0,91530.0,0.13244581]
[1768278286730,0.00389367,91544.0,91529.0,0.010938]
[1768278286731,0.00387658,91543.0,91525.0,0.01640102]
[1768278287225,0.09260665,91544.0,91530.0,0.13244581]
[1768278287531,0.00387658,91547.0,91530.0,0.13244581]
[1768278288028,0.00387658,91547.0,91528.0,0.010938]
[1768278288228,0.00387658,91547.0,91530.0,0.13244581]
[1768278291030,0.00387658,91547.0,91528.0,0.010938]
[1768278291330,0.00387658,91547.0,91530.0,0.13244581]
[1768278292035,0.0984,91548.0,91525.0,0.09826626]
[1768278292036,0.13244581,91540.0,91525.0,0.09826626]
[1768278292227,0.00473871,91538.0,91525.0,0.00546302]
[1768278292531,0.13244581,91535.0,91525.0,0.00546302]
[1768278292735,0.00473871,91537.0,91525.0,0.00546302]
[1768278293728,0.00473871,91535.0,91525.0,0.00546302]
[1768278294033,0.00473871,91535.0,91500.0,0.13662576]
[1768278294034,0.09260665,91530.0,91512.0,0.09291927]
[1768278294219,0.22505246,91530.0,91512.0,0.09291927]
[1768278295931,0.00484974,91528.0,91512.0,0.00011603]
[1768278297429,0.09260665,91529.0,91512.0,0.00011603]
[1768278297430,0.00360953,91526.0,91512.0,0.00011603]
[1768278297633,0.09260665,91527.0,91512.0,0.00011603]
[1768278297828,0.13244581,91522.0,91512.0,0.00011603]
[1768278298031,0.00360953,91522.0,91512.0,6.399e-05]
[1768278298635,0.19480722,91527.0,91512.0,6.399e-05]
[1768278300135,0.09436205,91526.0,91512.0,6.399e-05]
[1768278300332,0.0017554,91525.0,91512.0,6.399e-05]
[1768278300532,0.09436205,91525.0,91512.0,6.399e-05]
[1768278300732,0.0017554,91524.0,91512.0,6.399e-05]
[1768278301835,0.09260665,91525.0,91512.0,6.399e-05]
[1768278302224,0.00182519,91524.0,91512.0,6.399e-05]
[1768278302431,0.09260665,91525.0,91512.0,6.399e-05]
[1768278306440,0.09750999,91526.0,91512.0,6.399e-05]
[1768278306640,0.00071854,91525.0,91512.0,6.399e-05]
[1768278313944,0.09679145,91526.0,91512.0,6.399e-05]
[1768278314154,0.09854478,91539.0,91520.0,0.010939]
[1768278314335,0.09854478,91539.0,91521.0,0.19815946]
[1768278314539,0.00010478,91539.0,91522.0,0.09106315]
[1768278314745,0.09854478,91539.0,91522.0,0.09106315]
[1768278315850,0.09854478,91539.0,91523.0,0.010939]
[1768278316349,0.09854478,91539.0,91522.0,0.09106315]
[1768278316860,0.09854478,91539.0,91522.0,0.10200215]
[1768278319945,0.09854478,91539.0,91515.0,0.01094]
[1768278319946,0.0044763,91534.0,91515.0,0.01094]
[1768278320152,0.09854478,91539.0,91520.0,0.09106315]
[1768278320455,0.0044763,91537.0,91519.0,0.09615731]
[1768278320656,0.0044763,91537.0,91519.0,0.10709631]
[1768278320950,0.09854478,91539.0,91522.0,0.10200215]
[1768278322451,0.010936,91547.0,91513.0,0.09844]
[1768278322452,0.00240312,91548.0,91532.0,0.18722046]
[1768278322653,0.00240312,91548.0,91513.0,0.09844]
[1768278322654,0.00499191,91548.0,91528.0,0.09106315]
[1768278322956,0.00499191,91546.0,91527.0,0.09615731]
[1768278323543,9.316e-05,91545.0,91527.0,0.18722046]
[1768278325856,9.316e-05,91545.0,91528.0,0.09106315]
[1768278329661,9.316e-05,91545.0,91528.0,0.18722046]
[1768278331055,9.316e-05,91545.0,91529.0,0.09106315]
[1768278331359,9.316e-05,91545.0,91530.0,0.18722046]
[1768278332056,9.316e-05,91545.0,91531.0,0.18722046]
[1768278332253,0.09844,91557.0,91537.0,0.18722046]
[1768278332454,0.00405768,91556.0,91537.0,0.18722046]
[1768278332861,0.00405768,91555.0,91537.0,0.09615731]
[1768278333156,0.00405768,91555.0,91535.0,0.010937]
[1768278333363,0.00419411,91554.0,91535.0,0.010937]
[1768278333861,0.00419411,91554.0,91535.0,0.19815746]
[1768278335554,0.00013643,91554.0,91538.0,0.09654825]
[1768278335748,0.00013643,91554.0,91538.0,0.19145651]
[1768278335953,0.00013643,91554.0,91530.0,0.13268456]
[1768278335954,0.00013643,91554.0,91543.0,0.010936]
[1768278336155,0.00258365,91566.0,91544.0,0.19145651]
[1768278336357,0.00258365,91564.0,91544.0,0.19145651]
[1768278336658,0.00258365,91562.0,91543.0,0.010936]
[1768278337054,0.00258365,91562.0,91543.0,0.20239251]
[1768278337665,0.00258365,91562.0,91543.0,0.10584426]
[1768278338258,0.00123902,91561.0,91543.0,0.10600814]
[1768278338965,0.10120969,91560.0,91543.0,0.01109988]
[1768278339266,0.00123902,91559.0,91543.0,0.01109988]
[1768278340760,0.00115459,91558.0,91543.0,0.00016388]
[1768278340963,0.00115459,91556.0,91543.0,0.00016388]
[1768278342261,8.2e-07,91545.0,91543.0,0.00016388]
[1768278342469,0.09997067,91557.0,91543.0,0.00016388]
[1768278343260,0.10079391,91557.0,91543.0,0.00016388]
[1768278351162,0.09997067,91557.0,91543.0,0.00016388]
[1768278351561,0.19841067,91557.0,91543.0,0.00016388]
[1768278355171,0.09997067,91556.0,91543.0,0.00016388]
[1768278361978,0.09997067,91556.0,91533.0,0.19498825]
[1768278362674,0.09997067,91556.0,91533.0,0.28989651]
[1768278362876,0.09997067,91556.0,91534.0,0.09654825]
[1768278363179,0.09997067,91556.0,91534.0,0.10748525]
[1768278363380,0.09997067,91556.0,91534.0,0.010937]
[1768278363882,0.1326054,91550.0,91534.0,0.010937]
[1768278364380,0.09997067,91549.0,91532.0,0.09844]
[1768278365477,0.09997067,91549.0,91530.0,0.1326054]
[1768278366184,0.09844,91557.0,91519.0,0.010939]
[1768278366185,0.09461016,91539.0,91519.0,0.010939]
[1768278366382,0.09461016,91537.0,91520.0,0.09844]
[1768278366584,0.09461016,91537.0,91520.0,0.2310454]
[1768278367174,0.10554716,91539.0,91520.0,0.09844]
[1768278367574,0.10554716,91539.0,91520.0,0.2310454]
[1768278368578,0.10581279,91539.0,91520.0,0.2310454]
[1768278369785,0.00026563,91538.0,91520.0,0.2310454]
[1768278370886,0.10554716,91539.0,91520.0,0.32750519]
[1768278371087,0.1058116,91539.0,91520.0,0.32750519]
[1768278372290,9.908e-05,91538.0,91520.0,0.32750519]
[1768278372882,0.1326054,91535.0,91525.0,0.00299419]
[1768278373080,9.908e-05,91534.0,91525.0,0.00299419]
[1768278374089,0.010938,91533.0,91525.0,0.00299419]
[1768278374495,0.0006974,91528.0,91512.0,6.399e-05]
[1768278375095,0.1326054,91530.0,91512.0,6.399e-05]
[1768278375493,0.1326054,91530.0,91513.0,0.09704315]
[1768278379185,0.010938,91529.0,91512.0,6.399e-05]
[1768278379391,0.10671391,91529.0,91512.0,6.399e-05]
[1768278381096,0.010939,91526.0,91512.0,6.399e-05]
[1768278390402,0.010939,91523.0,91518.0,9.1e-07]
[1768278390901,0.010938,91527.0,91518.0,9.1e-07]
[1768278391102,0.1326054,91530.0,91518.0,9.1e-07]
[1768278403120,0.13502775,91530.0,91518.0,9.1e-07]
[1768278403417,0.00242235,91529.0,91518.0,9.1e-07]
[1768278403719,0.00242235,91526.0,91518.0,9.1e-07]
[1768278405114,0.10079322,91526.0,91518.0,9.1e-07]
[1768278405312,0.0030907,91525.0,91518.0,9.1e-07]
[1768278406821,0.10146157,91525.0,91518.0,9.1e-07]
[1768278407019,0.10154897,91524.0,91518.0,9.1e-07]
[1768278408020,0.0031781,91523.0,91518.0,9.1e-07]
[1768278408221,0.09837087,91522.0,91518.0,9.1e-07]
[1768278408420,0.09837087,91520.0,91518.0,9.1e-07]
[1768278408920,0.10151962,91520.0,91518.0,9.1e-07]
[1768278409809,0.10151962,91519.0,91518.0,9.1e-07]
[1768278410013,0.10151962,91519.0,91512.0,6.399e-05]
[1768278410014,0.00314875,91514.0,91505.0,0.00546421]
[1768278410215,0.00314875,91514.0,91505.0,0.00541385]
[1768278411017,7.225e-05,91513.0,91505.0,0.00541385]
[1768278412423,0.10269867,91512.0,91492.0,0.09786593]
[1768278412627,0.09837087,91512.0,91494.0,0.09844]
[1768278412815,0.09837087,91509.0,91489.0,0.010943]
[1768278413122,0.09837087,91504.0,91488.0,0.0024047]
[1768278413314,0.23097627,91500.0,91488.0,0.0024047]
[1768278413520,0.09837087,91499.0,91488.0,0.0024047]
[1768278414020,0.09935681,91499.0,91488.0,0.0024047]
[1768278415026,0.00098594,91498.0,91488.0,0.0024047]
[1768278415228,0.00098594,91501.0,91488.0,0.0024047]
[1768278416018,0.09935681,91504.0,91488.0,0.0024047]
[1768278416730,7.933e-05,91503.0,91488.0,0.0024047]
[1768278422321,0.09837087,91504.0,91488.0,0.0024047]
[1768278422730,0.09837087,91509.0,91489.0,0.010943]
[1768278423128,0.00546302,91525.0,91500.0,0.19347638]
[1768278423335,0.09848,91517.0,91504.0,0.09561045]
[1768278423533,0.09848,91517.0,91503.0,0.09786593]
[1768278424136,0.09848,91517.0,91501.0,0.09561045]
[1768278424730,0.10930987,91524.0,91501.0,0.09561045]
[1768278425035,0.09848,91518.0,91501.0,0.09561045]
[1768278426429,0.00226769,91517.0,91498.0,0.09786593]
[1768278426629,0.00226769,91517.0,91498.0,0.19497401]
[1768278426932,0.00226769,91517.0,91499.0,0.09710808]
[1768278427133,0.09848,91518.0,91499.0,0.09710808]
[1768278431640,0.09848,91518.0,91499.0,0.10805008]
[1768278433332,0.09848,91518.0,91500.0,0.09710808]
[1768278433639,0.09848,91518.0,91502.0,0.09710808]
[1768278438435,0.09848,91518.0,91502.0,0.010941]
[1768278440535,0.09848,91518.0,91501.0,0.18750182]
[1768278442839,0.09848,91518.0,91502.0,0.10122802]
[1768278443840,0.09848,91518.0,91502.0,0.010941]
[1768278447441,0.09848,91518.0,91501.0,0.0972148]
[1768278448340,0.1061528,91518.0,91501.0,0.0972148]
[1768278450350,0.1170918,91518.0,91501.0,0.0972148]
[1768278450556,0.1170918,91518.0,91499.0,0.09028702]
[1768278450854,0.0077699,91517.0,91499.0,0.09028702]
[1768278451446,0.0077699,91514.0,91496.0,0.09033231]
[1768278451653,0.0077699,91510.0,91491.0,0.09028702]
[1768278451950,0.0187099,91510.0,91491.0,0.09028702]
[1768278452548,0.0187099,91510.0,91492.0,0.09028702]
[1768278452953,0.01094,91510.0,91492.0,0.09028702]
[1768278453145,0.01094,91510.0,91493.0,0.18061933]
[1768278453645,0.01937912,91514.0,91493.0,0.18061933]
[1768278453845,0.01937912,91514.0,91494.0,0.09028702]
[1768278454046,0.01937912,91514.0,91495.0,0.09028702]
[1768278455956,0.01094,91511.0,91495.0,0.09028702]
[1768278459359,0.01094,91511.0,91494.0,0.09033231]
[1768278459560,0.01094,91511.0,91494.0,0.18984507]
[1768278459743,0.010941,91508.0,91494.0,0.18984507]
[1768278461253,0.010941,91508.0,91495.0,0.09951276]
[1768278462359,0.010941,91508.0,91495.0,0.19620589]
[1768278463557,0.01928516,91508.0,91489.0,0.09848]
[1768278463757,0.00834416,91506.0,91489.0,0.09848]
[1768278463955,0.010941,91502.0,91489.0,0.09848]
[1768278464756,0.010941,91502.0,91487.0,0.09669313]
[1768278464973,0.010942,91499.0,91485.0,0.00546541]
[1768278466356,0.010942,91496.0,91488.0,7e-07]
[1768278467664,0.02280913,91496.0,91488.0,7e-07]
[1768278467862,0.010942,91496.0,91488.0,7e-07]
[1768278469064,0.010942,91493.0,91485.0,1.1e-07]
[1768278469267,0.010942,91493.0,91474.0,0.09951276]
[1768278469470,0.010942,91493.0,91474.0,0.19620589]
[1768278469672,0.010942,91493.0,91475.0,0.09951276]
[1768278469868,0.01110588,91493.0,91475.0,0.19620589]
[1768278470068,0.01110588,91493.0,91476.0,0.09951276]
[1768278470973,0.01110588,91493.0,91476.0,0.19620589]
[1768278471168,0.01110588,91493.0,91477.0,0.09951276]
[1768278472379,0.010943,91490.0,91477.0,0.09951276]
[1768278472876,0.010943,91487.0,91471.0,0.19620589]
[1768278473177,0.010943,91487.0,91472.0,0.09951276]
[1768278473770,0.010943,91487.0,91471.0,0.09669313]
[1768278474162,0.010943,91487.0,91471.0,0.19620589]
[1768278475073,0.010943,91487.0,91468.0,0.09951276]
[1768278475273,0.01696508,91486.0,91468.0,0.09951276]
[1768278475977,0.010943,91487.0,91468.0,0.09951276]
[1768278476177,0.010943,91487.0,91469.0,0.19620589]
[1768278476377,0.010943,91487.0,91471.0,0.19620589]
[1768278477476,0.010943,91487.0,91471.0,0.09669313]
[1768278480782,0.11148508,91490.0,91465.0,0.00555934]
[1768278480783,0.010944,91479.0,91465.0,0.00555934]
[1768278481475,0.010945,91472.0,91456.0,0.09951276]
[1768278481681,0.12227204,91474.0,91456.0,0.09951276]
[1768278482682,0.105465,91470.0,91452.0,0.09951276]
[1768278483075,0.09452,91470.0,91452.0,0.09951276]
[1768278483271,0.13286545,91470.0,91456.0,0.09951276]
[1768278483476,0.13286545,91470.0,91453.0,0.19620589]
[1768278485385,0.13286545,91470.0,91453.0,0.09951276]
[1768278485569,0.22328322,91470.0,91453.0,0.09951276]
[1768278485775,0.22328322,91470.0,91450.0,0.09093839]
[1768278485776,0.010946,91467.0,91450.0,0.09093839]
[1768278486076,0.010946,91467.0,91450.0,0.18941839]
[1768278486279,0.010946,91467.0,91450.0,0.09093839]
[1768278487093,0.13286545,91460.0,91450.0,0.09093839]
[1768278487276,0.010946,91467.0,91450.0,0.09093839]
[1768278487471,0.13286545,91460.0,91446.0,0.09093839]
[1768278487676,9.274e-05,91459.0,91446.0,0.09093839]
[1768278488986,9.274e-05,91459.0,91447.0,0.09093839]
[1768278489387,9.274e-05,91459.0,91445.0,0.09640619]
[1768278489585,9.274e-05,91459.0,91445.0,0.19391046]
[1768278489883,0.14381045,91470.0,91457.0,0.09093839]
[1768278490588,0.010944,91478.0,91461.0,0.09093839]
[1768278491288,0.010944,91478.0,91457.0,0.09093839]
[1768278491672,0.13286545,91470.0,91457.0,0.09093839]
[1768278492988,0.13286545,91470.0,91454.0,0.09093839]
[1768278494884,0.09041777,91473.0,91455.0,0.09233807]
[1768278495190,0.13286545,91470.0,91455.0,0.09233807]
[1768278495587,0.22303064,91470.0,91449.0,0.010948]
[1768278495786,0.11467388,91467.0,91450.0,0.13286545]
[1768278495986,0.09016519,91465.0,91450.0,0.13286545]
[1768278496287,0.13286545,91460.0,91451.0,0.09233807]
[1768278496885,0.010945,91469.0,91452.0,0.09233807]
[1768278497091,0.13286545,91462.0,91448.0,0.09233807]
[1768278497276,0.010945,91469.0,91451.0,0.09233807]
[1768278497695,0.010946,91467.0,91450.0,0.13286545]
[1768278498290,0.13286545,91460.0,91445.0,0.0054678]
[1768278498792,0.13286545,91460.0,91445.0,0.09780587]
[1768278502196,0.010947,91459.0,91445.0,0.0054678]
[1768278502798,0.13286545,91460.0,91445.0,0.0054678]
[1768278505999,0.09016519,91463.0,91445.0,0.0054678]
[1768278506191,0.13286545,91460.0,91445.0,0.0054678]
[1768278506592,0.09848,91471.0,91454.0,0.09233807]
[1768278506892,0.010942,91494.0,91453.0,0.09183235]
[1768278506893,0.010945,91473.0,91460.0,0.13286545]
[1768278507097,0.13286545,91470.0,91458.0,0.09233807]
[1768278507599,0.13286545,91470.0,91454.0,0.09233807]
[1768278509403,0.09852,91472.0,91455.0,0.10328507]
[1768278509611,0.13286545,91470.0,91455.0,0.10328507]
[1768278512696,0.09852,91472.0,91455.0,0.10328507]
[1768278513197,0.13286545,91470.0,91455.0,0.10328507]
[1768278513604,0.09852,91472.0,91455.0,0.10328507]
[1768278514106,0.13286545,91470.0,91455.0,0.10328507]
[1768278515007,0.09852,91472.0,91455.0,0.10328507]
[1768278515210,0.13286545,91470.0,91455.0,0.10328507]
[1768278516816,0.09852,91472.0,91455.0,0.10328507]
[1768278517007,0.13286545,91470.0,91455.0,0.10328507]
[1768278530314,0.09852,91472.0,91455.0,0.10328507]
[1768278530517,0.13286545,91470.0,91455.0,0.10328507]
[1768278531110,0.09852,91472.0,91455.0,0.10328507]
[1768278531317,0.13286545,91470.0,91455.0,0.10328507]
[1768278539425,0.09852,91472.0,91455.0,0.10328507]
[1768278539630,0.13286545,91470.0,91455.0,0.10328507]
[1768278545330,0.09852,91472.0,91455.0,0.10328507]
[1768278545519,0.18969672,91472.0,91455.0,0.010947]
[1768278546425,0.18969672,91472.0,91453.0,0.09183235]
[1768278546830,0.18969672,91472.0,91454.0,0.010947]
[1768278549433,0.2168428,91472.0,91454.0,0.010947]
[1768278549631,0.2168428,91472.0,91453.0,0.18635445]
[1768278549932,0.09117672,91467.0,91449.0,0.0945221]
[1768278550435,0.1183228,91467.0,91449.0,0.0945221]
[1768278550733,0.1292688,91467.0,91449.0,0.0945221]
[1768278552737,0.09117672,91467.0,91449.0,0.1054701]
[1768278554037,0.09117672,91467.0,91452.0,0.010947]
[1768278554642,0.09852,91472.0,91445.0,0.09923657]
[1768278554643,0.1275522,91463.0,91445.0,0.09923657]
[1768278554838,0.0996505,91462.0,91446.0,0.09852]
[1768278555521,0.0996505,91461.0,91447.0,0.09852]
[1768278559642,0.0996505,91461.0,91445.0,0.0164158]
[1768278559834,0.0996505,91461.0,91446.0,0.09852]
[1768278563246,0.0996505,91461.0,91445.0,0.0164158]
[1768278563543,0.0996505,91461.0,91446.0,0.09852]
[1768278564940,0.0996505,91461.0,91445.0,0.0164158]
[1768278565146,0.0996505,91461.0,91446.0,0.09852]
[1768278566054,0.09852,91472.0,91446.0,0.09852]
[1768278566055,0.09852,91472.0,91460.0,0.09376877]
[1768278566336,0.09852,91479.0,91461.0,0.10471477]
[1768278567345,0.010945,91476.0,91461.0,0.09376877]
[1768278567548,0.1981705,91479.0,91455.0,0.09376877]
[1768278567846,0.010945,91474.0,91455.0,0.09376877]
[1768278568545,0.1105955,91474.0,91455.0,0.09376877]
[1768278569147,0.010945,91471.0,91455.0,0.09376877]
[1768278572146,0.010945,91473.0,91455.0,0.19236872]
[1768278572354,0.010945,91473.0,91456.0,0.09376877]
[1768278573149,0.0996505,91474.0,91456.0,0.09376877]
[1768278574045,0.1105955,91474.0,91456.0,0.09376877]
[1768278575659,0.00546302,91525.0,91504.0,0.010941]
[1768278575947,0.0915955,91530.0,91510.0,0.09435109]
[1768278576349,0.0915955,91530.0,91512.0,0.09435109]
[1768278576544,0.22445159,91522.0,91502.0,0.09435109]
[1768278576854,0.0915955,91520.0,91503.0,0.109461]
[1768278580745,0.0915955,91519.0,91503.0,0.109461]
[1768278582843,0.0915955,91519.0,91502.0,0.09451506]
[1768278582844,0.0915955,91555.0,91536.0,0.09435109]
[1768278583047,0.0915955,91552.0,91530.0,0.09435109]
[1768278583249,0.0915955,91550.0,91531.0,0.109418]
[1768278584854,0.0915955,91550.0,91531.0,0.010938]